[Event "Icelandic Chess-ch 2023"]
[Site "Hafnarfjordur"]
[Date "2023.05.21"]
[Round "7.6"]
[White "Kjartansson, Gudmundur"]
[Black "Ragnarsson, Dagur"]
[Result "1-0"]
[ECO "A06"]
[WhiteElo "2402"]
[BlackElo "2346"]
[Annotator "TA"]
[PlyCount "103"]
[EventDate "2023.05.13"]
[EventType "tourn"]
[EventCountry "ISL"]
[SourceTitle "playchess.com"]
[Source "ChessBase"]
[SourceQuality "1"]
[TimeControl "40/5400+30:1800+30"]

{[%evp 12,103,31,29,24,22,21,25,25,33,27,9,37,32,54,51,49,42,78,60,86,22,4,6,9,0,29,26,35,29,29,29,29,34,37,0,0,0,97,100,111,91,335,335,327,307,302,264,824,68,58,72,65,50,50,50,50,50,50,50,57,77,51,63,56,70,73,12,143,148,153,0,154,147,574,496,866,687,12833,12833,12833,10388,6598,1538,5501,1312,12838,12839,12839,12839,12841,12841,12843,12843]} 1. Nf3 {[%emt 0:00:08]} d5 {[%emt 0:00:08]} 2. d4 {[%emt 0:00:07]} Nf6 {[%emt 0:00:46]} 3. c4 {[%emt 0:00:15]} c6 {[%emt 0:00:06]} 4. e3 {[%emt 0:00:29]} e6 {[%emt 0:00:16]} 5. Bd3 {[%emt 0:00:56]} Nbd7 {[%emt 0:00:09]} 6. b3 {[%emt 0:01:26]} Bd6 {[%emt 0:00:38]} 7. Bb2 {[%emt 0:02:22]} b6 {[%emt 0:00:19] A06: Réti Opening: 1 Nf3 d5.} 8. Nbd2 {[%emt 0:00:32]} Bb7 {[%emt 0:00:24]} 9. O-O {[%emt 0:01:59]} O-O {[%emt 0:00:07] White has an edge.} 10. Re1 {[%emt 0:02:15] 10.Qe2 is becoming the main line.} Re8 {[%emt 0:00:37]} 11. Ne5 {[%emt 0:02:51]} Qc7 {[%emt 0:25:40][%cal Rd7e5]} 12. f4 {[%emt 0:01:20]} c5 {[%emt 0:02:39] [#]} 13. cxd5 $146 {[%emt 0:05:59]} ({Predecessor:} 13. Rc1 Ne4 14. Qc2 f6 15. Nxd7 Qxd7 16. Nxe4 dxe4 17. Bxe4 Bxe4 18. Qxe4 Qc7 19. d5 {½-½ Varnagy,G (1390)-Farkas,V (1259) HUN-chT4a 1819 2018 (4.5)}) 13... exd5 {[%emt 0:00:59]} 14. Rc1 {[%emt 0:03:52]} a6 {[%emt 0:10:43]} 15. Qf3 {[%emt 0:15:49]} Qd8 {[%emt 0:07:47]} 16. g4 {[%emt 0:14:48] White has more active pieces.} (16. Qh3 $16 {And now Nxd7 would win.} Nf8 17. Ndf3) 16... cxd4 $11 {[%emt 0:00:12]} 17. exd4 {[%emt 0:00:41]} Bb4 {[%emt 0:00:07]} 18. Bc3 {[%emt 0:01:26]} Bxc3 {[%emt 0:00:35]} (18... Ba3 $5 {[%cal Ra3c1]}) 19. Rxc3 {[%emt 0:00:14]} Ne4 {[%emt 0:08:09]} 20. Nxe4 {[%emt 0:08:02]} dxe4 {[%emt 0:00:35]} 21. Bxe4 {[%emt 0:00:10]} Bxe4 {[%emt 0:00:43]} 22. Rxe4 {[%emt 0:10:51]} Nf6 {[%emt 0:01:25]} 23. Ree3 {[%emt 0:03:45]} (23. Nc6 $5 Qd7 24. Ne5 $11) 23... h5 {[%emt 0:19:43] Hoping for ...Nd5.} 24. g5 {[%emt 0:02:14]} Ng4 {[%emt 0:05:10]} (24... Nd5 $11 25. Qxh5 Nxe3 26. Rxe3 (26. Qxf7+ Kh8 $11) 26... Qxd4 27. Qxf7+ Kh8) 25. Red3 $16 {[%emt 0:04:51]} Rc8 {[%emt 0:00:09]} 26. Qb7 $36 {[%emt 0:09:13][%mdl 2048] White has strong initiative.} Rxc3 $2 {[%emt 0:06:29]} (26... Nxe5 $16 27. Rxc8 (27. dxe5 Rxc3 28. Rxd8 Rxd8 $11) 27... Qxc8 28. Qxc8 (28. Qxb6 Nxd3 29. Qa5 Qc1+) 28... Rxc8 29. dxe5 g6) 27. Qxf7+ $18 {[%emt 0:00:08]} Kh7 {[%emt 0:00:03]} 28. Qxh5+ {[%emt 0:00:43]} (28. Rxc3 Qxd4+) 28... Kg8 {[%emt 0:00:28]} 29. Qf7+ {[%emt 0:01:06]} (29. Rxc3 Qxd4+ 30. Kg2 (30. Kh1 $2 Qd1+ 31. Kg2 Ne3+ {[%mdl 64] Discovered Attack} 32. Rxe3 Qxh5 $19) 30... Qd2+ 31. Kg3 Qxc3+ $11) 29... Kh7 $2 {[%emt 0:00:06]} (29... Kh8 30. Rxc3 Qxd4+ 31. Kh1 Qd1+ 32. Kg2 Qd2+ 33. Kg3 Qxc3+ 34. Kxg4 Qc8+ 35. Kh4 Qa8) 30. Rxc3 $2 {[%emt 0:03:40]} (30. Nxg4 $18 Rf8 31. Qh5+ (31. Rxc3 $2 Qxd4+ 32. Kg2 Qd2+ 33. Nf2 Rxf7 $19) 31... Kg8 32. Rxc3 Qxd4+ 33. Re3 Qd1+ 34. Kg2 Qd5+ 35. Kg3) 30... Qxd4+ $14 {[%emt 0:01:07]} 31. Kg2 $1 {[%emt 0:00:07][%cal Bg1g2,Bg2g3,Bg3g4,Bg4h4][%mdl 32] White wants to mate with g6+.} (31. Kh1 Qd1+ 32. Kg2 Qe2+ 33. Kg3 Nxe5 34. Qxe8 Qg4+ 35. Kf2 Qxf4+ 36. Ke1 Qe4+ 37. Kd1 Qb1+ 38. Kd2 Qb2+ 39. Rc2 Qd4+ 40. Ke2 (40. Kc1 Nd3+ 41. Kd2 Nf4+ 42. Ke1 Qg1+ 43. Kd2 Qd4+ 44. Ke1 Qg1+ 45. Kd2 Qd4+ $11) 40... Qg4+ 41. Kf2 (41. Kd2 Qxg5+ 42. Ke1 Qg1+ 43. Kd2 Nf3+ 44. Kd3 Qd1+ 45. Ke3 Qxc2 $11) 41... Qd4+ 42. Kg2 Qg4+ 43. Kf2 Qd4+ 44. Kg2 Qg4+ 45. Kf2 $11) 31... Qd2+ {[%emt 0:04:54]} (31... Nxe5 $2 32. Rh3#) 32. Kg3 {[%emt 0:00:09]} Qxc3+ {[%emt 0:00:04]} 33. Kxg4 {[%emt 0:00:05][%mdl 4096] Endgame White threatens Qg6+ and mate. KQR-KQN} Qc8+ $1 {[%emt 0:00:28]} 34. Kh4 $1 {[%emt 0:02:13] Threatening mate with Ng4.} Qe6 {[%emt 0:03:20] Repels Ng4. White must now prevent ...Qxf7.} 35. g6+ {[%emt 0:01:56]} Kh8 {[%emt 0:00:08]} 36. Kg3 {[%emt 0:00:40] h4 would be deadly.} Qc8 {[%emt 0:01:37]} 37. h4 {[%emt 0:00:31][%cal Bh2h4,Bh4h5][%mdl 32] h5 is the strong threat.} Qc3+ $1 {[%emt 0:00:20]} 38. Nf3 $1 {[%emt 0:00:33][%cal Rf7e8]} Qc8 {[%emt 0:00:24]} 39. Qd5 {[%emt 0:00:50]} ({White should play} 39. h5 $1 $16 {[%cal Rh5h6] h6! would kill now.} Rf8 40. Qe7 (40. Qc4 Qxc4 41. bxc4 Rf5 $11)) 39... Qe6 {[%emt 0:01:04]} (39... Qc5 $11 {keeps the balance.} 40. Qxc5 bxc5) 40. Qh5+ $16 {[%emt 0:00:33]} Kg8 {[%emt 0:00:04]} 41. Qh7+ $1 {[%emt 0:12:41]} ({Much less strong is} 41. Ne5 $6 Rc8 $14) 41... Kf8 {[%emt 0:00:04] [#]} 42. h5 $1 {[%emt 0:00:51]} Qg8 $2 {[%emt 0:03:34][%mdl 8192]} (42... Qf6 $16 {is a better chance.}) 43. Ne5 $18 {[%emt 0:02:14] Strongly threatening h6. White is clearly winning.} Ke7 {[%emt 0:02:27]} (43... Re7 $142 44. h6 gxh6 45. Qxh6+ Qg7) 44. f5 {[%emt 0:04:50]} Kf6 {[%emt 0:18:02] [#] ( -> ...Qd5)} 45. Qxg8 {[%emt 0:02:21]} ({Weaker is} 45. Kf4 Qxh7 46. gxh7 (46. Ng4+ Ke7 $11) 46... Rh8 $11) 45... Rxg8 {[%emt 0:00:04] KR-KN} 46. Kf4 {[%emt 0:00:07]} Rd8 {[%emt 0:00:47]} 47. Ng4+ {[%emt 0:00:10]} Ke7 {[%emt 0:00:04]} 48. Kg5 {[%emt 0:01:07]} (48. h6 $142 gxh6 49. Ke5 (49. Nxh6 Kf6 $18)) 48... Rd2 {[%emt 0:03:12]} 49. h6 {[%emt 0:01:38]} gxh6+ {[%emt 0:00:04]} 50. Kxh6 {[%emt 0:01:03]} Rg2 {[%emt 0:00:06] [#]} 51. Kg7 $1 {[%emt 0:02:46]} Rxg4 {[%emt 0:00:18]} (51... Kd6 52. f6) 52. f6+ {[%emt 0:00:03] Excellently played by Kjartansson!   Weighted Error Value: White=0.16 (very precise) /Black=0.41} 1-0

[Event "Icelandic Chess-ch 2023"]
[Site "Hafnarfjordur"]
[Date "2023.05.22"]
[Round "8.1"]
[White "Ptacnikova, Lenka"]
[Black "Ragnarsson, Dagur"]
[Result "1/2-1/2"]
[ECO "A12"]
[WhiteElo "2099"]
[BlackElo "2346"]
[Annotator "TA"]
[PlyCount "98"]
[EventDate "2023.05.13"]
[EventType "tourn"]
[EventCountry "ISL"]
[SourceTitle "playchess.com"]
[Source "ChessBase"]
[SourceQuality "1"]
[TimeControl "40/5400+30:1800+30"]

{[%evp 13,98,0,11,14,8,0,0,-20,-20,-32,-14,-43,-45,-42,-39,-41,-30,-25,-18,-37,-8,-30,-37,-77,-22,-36,0,0,22,22,24,29,37,37,36,40,37,47,45,24,22,14,33,0,0,-10,-18,-10,0,0,0,0,0,0,31,28,28,5,9,10,32,0,6,0,0,0,0,-24,0,0,0,0,0,0,0,0,0,0,0,0,0,0,0,0,0,0,0]} 1. c4 {[%emt 0:00:07]} c6 {[%emt 0:00:06]} 2. Nf3 {[%emt 0:01:16]} d5 {[%emt 0:00:07]} 3. e3 {[%emt 0:00:29]} Nf6 {[%emt 0:00:09]} 4. b3 {[%emt 0:00:19]} Bf5 {[%emt 0:00:38]} 5. Bb2 {[%emt 0:01:37]} e6 {[%emt 0:00:16]} 6. Be2 {[%emt 0:00:33]} h6 $1 {[%emt 0:00:08] 6...h6 is better than 6...Nbd7.} 7. O-O {[%emt 0:00:46]} Be7 {[%emt 0:00:48]} 8. Nc3 {[%emt 0:01:22] A12: English Opening: 1...c6 with b3 by White.} O-O {[%emt 0:00:10]} 9. d3 {[%emt 0:01:28]} Nbd7 {[%emt 0:01:55]} 10. cxd5 {[%emt 0:00:15]} exd5 {[%emt 0:06:39]} 11. Nd4 {[%emt 0:09:26] [#]} Bh7 $146 {[%emt 0:00:13]} ({Predecessor:} 11... Bg6 12. Re1 Re8 13. Bf3 Bc5 14. Nde2 Qc7 15. Rc1 Qa5 16. a3 Qd8 17. b4 Bb6 18. b5 Rc8 {½-½ Schigiol,J (1711)-Rex,D (1767) Muenster Bezirksliga 0506 2005 (4.2)}) 12. h3 {[%emt 0:00:15]} Re8 {[%emt 0:05:59]} 13. Qd2 {[%emt 0:03:01]} Bd6 {[%emt 0:14:10]} 14. Rfe1 {[%emt 0:05:18]} Nc5 {[%emt 0:11:49]} 15. b4 {[%emt 0:08:49]} Ne6 {[%emt 0:01:13]} 16. Na4 {[%emt 0:02:40]} Nd7 {[%emt 0:12:32]} 17. Rec1 {[%emt 0:06:09]} Qh4 {[%emt 0:07:14]} 18. a3 {[%emt 0:04:21] [#]} Nxd4 {[%emt 0:07:32]} (18... Ng5 $1 $17 {[%cal Rg5h3] Hoping for ...Nxh3+!} 19. Bf1 Rab8) 19. Bxd4 $11 {[%emt 0:00:52]} Bf5 {[%emt 0:01:46]} (19... Nf8 $5 {[%cal Rf8e6]}) 20. Nc5 {[%emt 0:11:28] Dodges Re6} Nxc5 {[%emt 0:00:20]} 21. bxc5 {[%emt 0:00:29]} Be5 {[%emt 0:00:09]} 22. Bxe5 {[%emt 0:01:48]} Rxe5 {[%emt 0:00:06]} 23. Bf1 {[%emt 0:01:48]} Rae8 {[%emt 0:03:07]} 24. Rab1 {[%emt 0:02:07]} Bc8 {[%emt 0:00:07]} 25. Rb4 {[%emt 0:01:33]} Qe7 {[%emt 0:01:08]} 26. Qb2 {[%emt 0:03:49]} g5 {[%emt 0:01:19]} 27. Qd4 {[%emt 0:04:13]} Re6 {[%emt 0:02:20]} 28. g3 {[%emt 0:05:32]} f5 {[%emt 0:00:23]} 29. Bg2 {[%emt 0:00:54]} Rf8 {[%emt 0:00:17][%cal Of5f4]} 30. Qc3 $1 {[%emt 0:05:25]} Ref6 {[%emt 0:01:36]} 31. Re1 {[%emt 0:03:22]} Qg7 {[%emt 0:02:39]} 32. Qd2 {[%emt 0:07:34]} Rd8 {[%emt 0:03:16]} 33. Qb2 {[%emt 0:00:39]} Re6 {[%emt 0:04:17][%cal Od5d4]} 34. Qxg7+ {[%emt 0:00:17]} Kxg7 {[%emt 0:00:06]} 35. Rd4 {[%emt 0:02:25]} Kf6 {[%emt 0:03:23]} 36. Rb1 {[%emt 0:00:21]} Ke7 {[%emt 0:01:03]} 37. Kf1 {[%emt 0:00:43]} Rf8 {[%emt 0:00:14]} 38. Ra4 {[%emt 0:01:41]} f4 {[%emt 0:04:01]} 39. exf4 {[%emt 0:01:02]} gxf4 {[%emt 0:00:05]} 40. gxf4 {[%emt 0:00:44]} Ref6 {[%emt 0:00:22]} (40... Rg6 $5 {[%cal Rf8g8]}) 41. Rxa7 {[%emt 0:07:13] The position is equal.} Rxf4 {[%emt 0:00:13]} 42. Rb2 {[%emt 0:00:18]} Kd8 {[%emt 0:01:16]} 43. Ra8 {[%emt 0:03:06]} Kc7 {[%emt 0:00:10][%cal Oc8f5]} 44. Re2 {[%emt 0:03:22]} R8f7 {[%emt 0:02:26]} 45. Kg1 {[%emt 0:00:58]} Rg7 {[%emt 0:07:11]} 46. Kh2 {[%emt 0:01:48]} Rgf7 {[%emt 0:02:20]} 47. Kg1 {[%emt 0:00:09]} Rg7 {[%emt 0:00:04]} 48. Kh2 {[%emt 0:01:03]} Rgf7 {[%emt 0:00:28]} 49. Kg1 {[%emt 0:00:10]} Rg7 {[%emt 0:00:28] Weighted Error Value: White=0.08 (flawless) /Black=0.08 (flawless)} 1/2-1/2

[Event "Icelandic Chess-ch 2023"]
[Site "Hafnarfjordur"]
[Date "2023.05.22"]
[Round "8.2"]
[White "Danielsen, Henrik"]
[Black "Kjartansson, Gudmundur"]
[Result "0-1"]
[ECO "D05"]
[WhiteElo "2501"]
[BlackElo "2402"]
[Annotator "TA"]
[PlyCount "44"]
[EventDate "2023.05.13"]
[EventType "tourn"]
[EventCountry "ISL"]
[SourceTitle "playchess.com"]
[Source "ChessBase"]
[SourceQuality "1"]
[TimeControl "40/5400+30:1800+30"]

{[%evp 12,44,22,18,37,30,29,19,30,18,20,-4,14,0,39,27,25,17,50,39,42,37,52,43,53,41,65,39,39,4,14,-3,-10,-370,-366]} 1. d4 {[%emt 0:00:03]} Nf6 {[%emt 0:00:33]} 2. Nf3 {[%emt 0:00:12]} d5 {[%emt 0:00:19]} 3. e3 {[%emt 0:00:47]} e6 {[%emt 0:00:58]} 4. Bd3 {[%emt 0:02:27]} c5 {[%emt 0:04:34]} 5. O-O {[%emt 0:00:17]} Nc6 {[%emt 0:00:14]} 6. c3 {[%emt 0:02:18]} Qc7 {[%emt 0:09:21]} 7. Nbd2 {[%emt 0:00:27]} Bd7 {[%emt 0:02:08] D05: Colle System with ...e6.} 8. Qe2 {[%emt 0:01:08]} Be7 {[%emt 0:05:41]} 9. dxc5 {[%emt 0:03:21]} Bxc5 {[%emt 0:00:20] [#] The position is equal.} 10. b4 $146 {[%emt 0:02:24]} ({Predecessor:} 10. e4 O-O 11. e5 Ng4 12. Bxh7+ Kxh7 13. Ng5+ Kg8 14. Qxg4 Qxe5 15. Qh5 Qf5 16. Ndf3 {½-½ Hofstetter,H (2508)-Klausen,T (2441) olm15 fin B6 email 2006 [6]}) 10... Be7 {[%emt 0:01:53]} 11. Bb2 {[%emt 0:00:37]} O-O {[%emt 0:05:29]} (11... e5 $5 {[%cal Re5e4]} 12. e4 dxe4 13. Nxe4 Nd5 $11) 12. a3 {[%emt 0:03:56]} Ne5 {[%emt 0:12:11]} (12... e5 $5 {[%cal Re5e4]} 13. e4 dxe4 14. Nxe4 Nh5 $11) 13. Nxe5 $1 {[%emt 0:02:45]} Qxe5 {[%emt 0:00:04]} 14. Rab1 {[%emt 0:01:10]} Qc7 {[%emt 0:08:09]} 15. c4 {[%emt 0:00:30]} dxc4 {[%emt 0:00:22]} 16. Nxc4 {[%emt 0:00:33]} Ba4 {[%emt 0:03:52]} 17. Rbc1 {[%emt 0:03:28]} Rfd8 {[%emt 0:03:40]} 18. Ne5 {[%emt 0:17:58]} Qd6 {[%emt 0:01:15]} 19. Bd4 {[%emt 0:06:04]} Rac8 {[%emt 0:06:19]} 20. Qf3 {[%emt 0:02:11]} Qd5 {[%emt 0:03:05]} 21. Qg3 {[%emt 0:14:08]} Bb5 {[%emt 0:04:12]} 22. Ng4 $2 {[%emt 0:04:50][%mdl 8192] [#]} (22. Qf3 $11 Qxf3 23. gxf3) 22... Nh5 $1 {[%emt 0:05:14] Weighted Error Value: White=0.43/Black=0.07 (flawless)} 0-1

[Event "Icelandic Chess-ch 2023"]
[Site "Hafnarfjordur"]
[Date "2023.05.22"]
[Round "8.3"]
[White "Domalchuk-Jonasson, Aleksandr"]
[Black "Stefansson, Vignir Vatnar"]
[Result "1/2-1/2"]
[ECO "D35"]
[WhiteElo "2338"]
[BlackElo "2470"]
[Annotator "TA"]
[PlyCount "70"]
[EventDate "2023.05.13"]
[EventType "tourn"]
[EventCountry "ISL"]
[SourceTitle "playchess.com"]
[Source "ChessBase"]
[SourceQuality "1"]
[TimeControl "40/5400+30:1800+30"]

{[%evp 9,70,9,9,6,6,10,14,0,20,15,16,16,15,9,17,9,18,16,6,5,8,7,18,14,20,9,11,7,20,6,11,9,8,6,4,2,17,8,32,27,3,0,9,0,5,0,0,0,0,0,0,0,0,0,0,0,0,0,0,0,0,0,0]} 1. d4 {[%emt 0:00:04]} d5 {[%emt 0:00:11]} 2. c4 {[%emt 0:00:08]} e6 {[%emt 0:00:05]} 3. Nc3 {[%emt 0:00:10]} Nf6 {[%emt 0:00:11]} 4. cxd5 {[%emt 0:00:14]} exd5 {[%emt 0:00:08]} 5. Bf4 {[%emt 0:00:16]} Bd6 {[%emt 0:05:16]} 6. Bxd6 {[%emt 0:00:08] D35: Queen's Gambit Declined: Exchange Variation.} Qxd6 {[%emt 0:00:04]} 7. e3 {[%emt 0:00:12]} Bf5 {[%emt 0:00:57]} 8. Qf3 $1 {[%emt 0:00:14][%mdl 4] is currently scoring better than 8.Bd3.} g6 {[%emt 0:13:55]} 9. Nge2 {[%emt 0:00:33]} c6 {[%emt 0:02:59]} 10. Qf4 {[%emt 0:00:20]} Qxf4 {[%emt 0:13:44]} 11. Nxf4 {[%emt 0:00:06] [#]} O-O $146 {[%emt 0:00:07]} ({Predecessor:} 11... Nbd7 12. h4 h6 13. f3 Ke7 14. g4 Be6 15. Bd3 Rag8 16. Kf2 Nb6 17. Nce2 Nc8 {0-1 Sarana,A (2668)-Artemiev,V (2701) Titled Tuesday intern op 17th Jan Early blitz 2023 (8)}) 12. h4 {[%emt 0:01:43]} h5 {[%emt 0:00:26]} 13. b4 {[%emt 0:00:58]} a6 {[%emt 0:06:42]} 14. f3 {[%emt 0:00:29]} Nbd7 {[%emt 0:00:26][%cal Bb8d7,Bd7b6,Bb6c4][%mdl 32]} 15. a4 {[%emt 0:09:57]} a5 {[%emt 0:04:41]} 16. b5 {[%emt 0:08:06]} Nb6 {[%emt 0:00:06]} 17. bxc6 {[%emt 0:09:57]} bxc6 {[%emt 0:00:13]} 18. Kf2 {[%emt 0:00:17]} Rfc8 {[%emt 0:02:03]} 19. Bd3 {[%emt 0:16:01]} Bxd3 {[%emt 0:00:13]} 20. Nxd3 {[%emt 0:00:04]} Nc4 {[%emt 0:00:08]} 21. Rab1 {[%emt 0:03:00][%cal Ba1b1,Bb1b3,Bb3c3][%mdl 32]} Re8 {[%emt 0:01:09]} 22. Rhe1 {[%emt 0:01:31]} Re7 {[%emt 0:00:14]} 23. Rb3 {[%emt 0:06:10]} Rae8 {[%emt 0:03:34][%cal Re7e3]} 24. Nd1 {[%emt 0:00:34]} Nd7 {[%emt 0:00:29][%cal Bf6d7,Bd7b6,Bb6c4,Bc4d6,Bd6f5][%mdl 32]} 25. N3b2 {[%emt 0:05:24] The position is equal.} Nd6 {[%emt 0:04:08]} 26. Nd3 {[%emt 0:04:41]} Kg7 {[%emt 0:06:05]} 27. Rc3 {[%emt 0:05:37]} Nc4 {[%emt 0:00:27]} 28. N3b2 {[%emt 0:01:19]} Ndb6 {[%emt 0:00:24]} 29. Nxc4 {[%emt 0:00:19]} Nxc4 {[%emt 0:00:05]} 30. Rb3 $1 {[%emt 0:01:21] Repels Rb7} Nd6 {[%emt 0:03:10]} 31. Re2 {[%emt 0:06:07]} Nf5 {[%emt 0:05:10][%cal Of5d4] [#] ...Nxd4! would be deadly.} 32. Rc2 {[%emt 0:00:40]} Re6 {[%emt 0:00:05]} 33. g3 {[%emt 0:06:43]} R8e7 {[%emt 0:00:24]} 34. Rbc3 {[%emt 0:02:44]} Re8 {[%emt 0:09:53]} 35. Rb3 {[%emt 0:04:03]} R8e7 {[%emt 0:02:32] A rather calm draw.   Weighted Error Value: White=0.03 (flawless) /Black=0.05 (flawless)} 1/2-1/2

[Event "Icelandic Chess-ch 2023"]
[Site "Hafnarfjordur"]
[Date "2023.05.22"]
[Round "8.4"]
[White "Ingvason, Johann"]
[Black "Hjartarson, Johann"]
[Result "1/2-1/2"]
[ECO "E00"]
[WhiteElo "2076"]
[BlackElo "2466"]
[Annotator "TA"]
[PlyCount "97"]
[EventDate "2023.05.13"]
[EventType "tourn"]
[EventCountry "ISL"]
[SourceTitle "playchess.com"]
[Source "ChessBase"]
[SourceQuality "1"]
[TimeControl "40/5400+30:1800+30"]

{[%evp 13,97,6,12,12,9,20,20,-4,1,0,0,4,12,-5,22,0,0,0,0,0,0,0,0,0,0,0,8,0,0,0,0,0,0,0,6,0,0,0,0,0,0,-54,-57,-81,-65,-78,-80,-91,-73,-73,-81,-77,-81,-71,-64,-100,-89,-146,-141,-151,-159,-135,-141,-156,-144,-178,-195,-194,-178,-165,-70,-223,-37,-62,0,0,0,0,0,0,0,0,0,0,0,0]} 1. d4 {[%emt 0:00:06]} Nf6 {[%emt 0:00:52]} 2. c4 {[%emt 0:00:20]} e6 {[%emt 0:00:45]} 3. g3 {[%emt 0:00:06]} Bb4+ {[%emt 0:00:48]} 4. Nd2 {[%emt 0:00:05]} c5 {[%emt 0:00:25]} 5. a3 {[%emt 0:00:10]} Bxd2+ {[%emt 0:00:08]} 6. Qxd2 {[%emt 0:00:03]} cxd4 {[%emt 0:00:10]} 7. Nf3 {[%emt 0:00:08]} b6 {[%emt 0:00:17]} 8. Bg2 {[%emt 0:03:03] E00: Catalan Bogo-Indian (3 g3 Bb4+).} Bb7 {[%emt 0:00:11]} 9. Qxd4 {[%emt 0:00:22]} Nc6 {[%emt 0:01:04]} 10. Qc3 {[%emt 0:02:43]} O-O {[%emt 0:05:44]} 11. O-O {[%emt 0:00:04]} Rc8 {[%emt 0:00:59]} 12. b4 $1 {[%emt 0:04:14]} Ne7 {[%emt 0:05:34] [#]} 13. Bb2 $146 {[%emt 0:11:33]} ({Predecessor:} 13. Bg5 Ne4 14. Qd3 f6 15. Be3 Nf5 16. Rac1 d5 17. Nd4 Nxd4 18. Bxd4 dxc4 19. Rxc4 Rxc4 20. Qxc4 {1-0 Landa,K (2640)-Poluljahov,A (2511) Doroshkevich Memorial op 2012 (6)}) 13... Bxf3 {[%emt 0:25:50]} 14. Bxf3 {[%emt 0:02:02] A strong pair of Bishops.} d5 {[%emt 0:00:15]} 15. c5 {[%emt 0:00:35]} bxc5 {[%emt 0:00:09]} 16. bxc5 {[%emt 0:00:10]} Nc6 {[%emt 0:00:31]} 17. Rfd1 {[%emt 0:02:59]} Qe7 {[%emt 0:01:50]} 18. Rac1 {[%emt 0:02:49]} Rb8 {[%emt 0:07:29]} 19. Ba1 {[%emt 0:15:33]} h6 {[%emt 0:03:43]} 20. Rd2 {[%emt 0:07:57]} Rfc8 {[%emt 0:01:02]} 21. Rb2 {[%emt 0:01:38]} Rxb2 {[%emt 0:01:54]} 22. Qxb2 {[%emt 0:01:46]} Rb8 {[%emt 0:01:58]} 23. Qc2 {[%emt 0:02:40]} Rb5 {[%emt 0:12:31]} 24. Qc3 {[%emt 0:01:17]} Qb7 {[%emt 0:00:48]} 25. Qd2 {[%emt 0:02:39]} Qe7 {[%emt 0:09:02]} 26. Qc3 {[%emt 0:02:36]} Qf8 {[%emt 0:00:20]} 27. Kg2 {[%emt 0:09:10]} (27. Qd2 $11) 27... Nd7 $15 {[%emt 0:01:05][%cal Rb5c5,Bf6d7,Bd7e5,Be5c4][%mdl 32]} 28. Qd2 {[%emt 0:07:03]} Rxc5 {[%emt 0:00:41]} ({Of course not} 28... Nxc5 $6 29. Qc2 $11) 29. Rxc5 {[%emt 0:00:16]} Qxc5 {[%emt 0:00:33]} 30. Qb2 {[%emt 0:01:01][%csl Ga1][%cal Rb2g7]} Nde5 {[%emt 0:01:42]} 31. e3 {[%emt 0:02:38]} Qb6 {[%emt 0:01:24]} 32. Be2 {[%emt 0:05:21]} Qxb2 {[%emt 0:00:39]} 33. Bxb2 $17 {[%emt 0:00:04][%mdl 4096] Endgame KBB-KNN} f6 {[%emt 0:07:26]} 34. f4 {[%emt 0:00:59]} Nc4 {[%emt 0:00:02]} 35. Bc1 {[%emt 0:03:06]} (35. Bxc4 $142 dxc4 36. Kf2) 35... N6a5 $1 {[%emt 0:00:31]} 36. Bd1 {[%emt 0:00:56] Dodges Nb3} Kf7 {[%emt 0:00:25]} 37. Kf3 {[%emt 0:00:22]} f5 {[%emt 0:02:16]} 38. g4 {[%emt 0:01:38]} Nb7 {[%emt 0:01:46]} 39. gxf5 {[%emt 0:01:11]} exf5 {[%emt 0:00:04]} 40. Ke2 {[%emt 0:08:33]} Nbd6 {[%emt 0:00:30]} 41. Kd3 {[%emt 0:01:33] [#]} Ke6 {[%emt 0:02:28]} ({Black should play} 41... g5 $1 $19 {And now ...g4 would win.} 42. Kd4 Ke6) 42. a4 $2 {[%emt 0:00:37] [#]} (42. h4 $1 $15) 42... Nb7 $2 {[%emt 0:06:49]} ({Better is} 42... g5 $1 $19 {[%cal Rg5g4] Strongly threatening ...g4.} 43. Bh5 Ne4) 43. Kd4 {[%emt 0:00:53]} Kd6 {[%emt 0:01:06]} (43... Nba5 $15) 44. Bf3 $11 {[%emt 0:04:38] The position is equal.} Nb6 {[%emt 0:00:34]} 45. Ba3+ {[%emt 0:00:18]} Ke6 {[%emt 0:04:45][%cal Og7g5]} 46. Bf8 {[%emt 0:00:51]} Kf7 {[%emt 0:02:47]} 47. Ba3 {[%emt 0:08:02]} (47. Bxd5+ $2 Nxd5 48. Bxg7 Nxe3 $19) 47... Ke6 {[%emt 0:00:08][%cal Og7g5]} 48. Bf8 {[%emt 0:00:12]} Kf7 {[%emt 0:00:23]} 49. Ba3 {[%emt 0:03:40] Black had all chances to win.   Weighted Error Value: White=0.12 (very precise) /Black=0.13 (very precise)} (49. Bxd5+ $2 {loses.} Nxd5 50. Bxg7 Nxe3 $19) 1/2-1/2